{"text_format":"1","workbook":"xlsx","n_sheets":2,"sheets":["認知書","取り込み"],"not_rendered":{"charts":0,"images":0,"macros":1,"external_links":0,"defined_names":2,"comments":0,"pivot_tables":0},"unopened":[],"bounds":{"document_bytes":16777216,"sheet_cells":100000,"rows_first":2000,"rows_last":500,"rows_between":2000,"halvings":0,"cell_chars":16384,"cell_head_chars":4096},"cells_cut":0,"cells_raw":0,"read":"whole","date_system":"1900"}

{"sheet":"認知書","index":0,"n_rows":95,"n_cols":46,"rows_kept":95,"cut":false,"hidden":false,"merged":[[3,19,3,20],[3,22,4,22],[3,23,4,23],[3,25,4,25],[34,30,34,31],[3,26,4,26],[3,27,4,27],[7,30,7,32],[8,30,8,32],[27,30,27,31],[29,29,31,33],[24,30,24,33],[25,29,25,33],[0,29,0,30],[2,0,4,0],[2,1,4,1],[2,2,4,2],[2,3,4,3],[2,4,4,4],[2,5,4,5],[2,6,2,21],[2,22,2,23],[2,24,4,24],[2,25,2,27],[3,6,3,10],[3,11,3,12],[3,13,3,14],[3,15,3,16],[3,17,3,18],[87,30,87,31],[89,29,91,33],[94,30,94,31],[67,30,67,32],[68,30,68,32],[56,30,56,33],[84,30,84,33],[85,29,85,33],[86,30,86,33],[26,30,26,33],[54,30,54,33],[55,29,55,33],[59,29,61,33],[64,30,64,31],[57,30,57,31],[37,30,37,32],[38,30,38,32]]}
[{"$f":"\"第\" & AK1 & \"回近畿高等学校選手権水泳競技大会\"","v":"第79回近畿高等学校選手権水泳競技大会"},null,null,null,null,null,"参加種目別一覧表及び学校長認知書",null,null,null,null,null,null,null,null,null,null,null,null,null,null,null,null,null,null,null,null,null,null,"登録団体番号",null,null,null,null,null,"第",79,"回",null,null,{"$f":"AR3+ROUNDUP(AT3/30,0)","v":0},"枚中の",1,"枚目"]
[]
["No.","選手名前","フリガナ","生年月日","学年","性別","競　泳　出　場　種　目",null,null,null,null,null,null,null,null,null,null,null,null,null,null,null,"飛込",null,"水球","ｱｰﾃｨｽﾃｨｯｸｽｲﾐﾝｸﾞ",null,null,null,null,null,null,null,null,null,null,null,null,null,null,{"$f":"AF13","v":0},"人","÷30",{"$f":"INT(AO3/30)","v":0},"余り",{"$f":"MOD(AO3,30)","v":0}]
[null,null,null,null,null,null,"自由形",null,null,null,null,"背泳ぎ",null,"バタフライ",null,"平泳ぎ",null,"個人\nメドレー",null,"フリーリレー",null,"メドレー\nリレー","飛板","高",null,"ソロ","デュエット","チーム",null,"加盟\n団体",null,{"$f":"IFERROR(VLOOKUP(AE4,AM6:AN11,2,FALSE),\"\")","v":""}]
[null,null,null,null,null,null,50,100,200,400,"1500　　　800",100,200,100,200,100,200,200,400,"4×100","4×200","4×100"]
[1,null,null,null,null,null,null,null,null,null,null,null,null,null,null,null,null,null,null,null,null,null,null,null,null,null,null,null,null,"種別",null,{"$f":"IFERROR(VLOOKUP(AE6,AJ6:AK9,2,FALSE),\"\")","v":""},null,null,null,1,"競泳",null,25,"滋賀"]
[2,null,null,null,null,null,null,null,null,null,null,null,null,null,null,null,null,null,null,null,null,null,null,null,null,null,null,null,null,null,"1～4",null,null,{"$f":"AO1 & \"枚中の1枚目\"","v":"0枚中の1枚目"},null,2,"飛込",null,26,"京都"]
[3,null,null,null,null,null,null,null,null,null,null,null,null,null,null,null,null,null,null,null,null,null,null,null,null,null,null,null,null,"ふりがな",null,null,null,null,null,3,"水球",null,27,"大阪"]
[4,null,null,null,null,null,null,null,null,null,null,null,null,null,null,null,null,null,null,null,null,null,null,null,null,null,null,null,null,"学校名",null,null,null,null,null,4,"ＡＳ",null,28,"兵庫"]
[5,null,null,null,null,null,null,null,null,null,null,null,null,null,null,null,null,null,null,null,null,null,null,null,null,null,null,null,null,null,null,null,null,null,null,null,null,null,29,"奈良"]
[6,null,null,null,null,null,null,null,null,null,null,null,null,null,null,null,null,null,null,null,null,null,null,null,null,null,null,null,null,"参加人数","男子",null,"名",null,null,null,null,null,30,"和歌山"]
[7,null,null,null,null,null,null,null,null,null,null,null,null,null,null,null,null,null,null,null,null,null,null,null,null,null,null,null,null,null,"女子",null,"名"]
[8,null,null,null,null,null,null,null,null,null,null,null,null,null,null,null,null,null,null,null,null,null,null,null,null,null,null,null,null,null,"合計",{"$f":"SUM(AF11,AF12)","v":0},"名",null,null,null,"〇","漢数字"]
[9,null,null,null,null,null,null,null,null,null,null,null,null,null,null,null,null,null,null,null,null,null,null,null,null,null,null,null,null,null,null,null,null,null,null,null,"○","記号"]
[10,null,null,null,null,null,null,null,null,null,null,null,null,null,null,null,null,null,null,null,null,null,null,null,null,null,null,null,null,"①　参加料合計"]
[11,null,null,null,null,null,null,null,null,null,null,null,null,null,null,null,null,null,null,null,null,null,null,null,null,null,null,null,null,null,"合計",{"$f":"AF13*AM16","v":0},"円",null,null,null,"参加料","１名",4500]
[12]
[13,null,null,null,null,null,null,null,null,null,null,null,null,null,null,null,null,null,null,null,null,null,null,null,null,null,null,null,null,"②　プログラム代"]
[14,null,null,null,null,null,null,null,null,null,null,null,null,null,null,null,null,null,null,null,null,null,null,null,null,null,null,null,null,1,"部",{"$f":"AD19*AM19","v":1500},"円",null,null,null,"プログラム","１部",1500]
[15]
[16,null,null,null,null,null,null,null,null,null,null,null,null,null,null,null,null,null,null,null,null,null,null,null,null,null,null,null,null,"①＋②　合計"]
[17,null,null,null,null,null,null,null,null,null,null,null,null,null,null,null,null,null,null,null,null,null,null,null,null,null,null,null,null,null,null,{"$f":"SUM(AF16,AF19)","v":1500},"円"]
[18]
[19,null,null,null,null,null,null,null,null,null,null,null,null,null,null,null,null,null,null,null,null,null,null,null,null,null,null,null,null,"住所，TEL，引率教諭・印"]
[20,null,null,null,null,null,null,null,null,null,null,null,null,null,null,null,null,null,null,null,null,null,null,null,null,null,null,null,null,"〒"]
[21]
[22,null,null,null,null,null,null,null,null,null,null,null,null,null,null,null,null,null,null,null,null,null,null,null,null,null,null,null,null,"TEL"]
[23,null,null,null,null,null,null,null,null,null,null,null,null,null,null,null,null,null,null,null,null,null,null,null,null,null,null,null,null,null,null,null,null,"印"]
[24]
[25,null,null,null,null,null,null,null,null,null,null,null,null,null,null,null,null,null,null,null,null,null,null,null,null,null,null,null,null,"　左記の者は本校在学生徒で，標記大会に出場することを認めます。\nなお，大会期間中（前日含む）に宿泊する場合は，指定斡旋業者を利用します。"]
[26]
[27]
[28,null,null,null,null,null,null,null,null,null,null,null,null,null,null,null,null,null,null,null,null,null,null,null,null,null,null,null,null,"2025年",null,"月",null,"日"]
[29]
[30,null,null,null,null,null,null,null,null,null,null,null,null,null,null,null,null,null,null,null,null,null,null,null,null,null,null,null,null,"学校長",null,null,"印"]
[31,null,null,null,null,null,null,null,null,null,null,null,null,null,null,null,null,null,null,null,null,null,null,null,null,null,null,null,null,"種別",{"$f":"IF(LEN(AE6)>0,AE6,\"\")","v":""},{"$f":"IF(LEN(AF6)>0,AF6,\"\")","v":""}]
[32,null,null,null,null,null,null,null,null,null,null,null,null,null,null,null,null,null,null,null,null,null,null,null,null,null,null,null,null,null,"1～4",null,null,{"$f":"AO1 & \"枚中の2枚目\"","v":"0枚中の2枚目"}]
[33,null,null,null,null,null,null,null,null,null,null,null,null,null,null,null,null,null,null,null,null,null,null,null,null,null,null,null,null,"ふりがな",{"$f":"IF(LEN(AE8)>0,AE8,\"\")","v":""}]
[34,null,null,null,null,null,null,null,null,null,null,null,null,null,null,null,null,null,null,null,null,null,null,null,null,null,null,null,null,"学校名",{"$f":"IF(LEN(AE9)>0,AE9,\"\")","v":""}]
[35]
[36,null,null,null,null,null,null,null,null,null,null,null,null,null,null,null,null,null,null,null,null,null,null,null,null,null,null,null,null,"参加人数","男子",{"$f":"IF(LEN(AF11)>0,AF11,\"\")","v":""},"名"]
[37,null,null,null,null,null,null,null,null,null,null,null,null,null,null,null,null,null,null,null,null,null,null,null,null,null,null,null,null,null,"女子",{"$f":"IF(LEN(AF12)>0,AF12,\"\")","v":""},"名"]
[38,null,null,null,null,null,null,null,null,null,null,null,null,null,null,null,null,null,null,null,null,null,null,null,null,null,null,null,null,null,"合計",0,"名"]
[39]
[40,null,null,null,null,null,null,null,null,null,null,null,null,null,null,null,null,null,null,null,null,null,null,null,null,null,null,null,null,"①　参加料合計"]
[41,null,null,null,null,null,null,null,null,null,null,null,null,null,null,null,null,null,null,null,null,null,null,null,null,null,null,null,null,null,"合計",{"$f":"IF(LEN(AF16)>0,AF16,\"\")","v":0},"円"]
[42]
[43,null,null,null,null,null,null,null,null,null,null,null,null,null,null,null,null,null,null,null,null,null,null,null,null,null,null,null,null,"②　プログラム代"]
[44,null,null,null,null,null,null,null,null,null,null,null,null,null,null,null,null,null,null,null,null,null,null,null,null,null,null,null,null,{"$f":"IF(LEN(AD19)>0,AD19,\"\")","v":1},"部",{"$f":"IF(LEN(AF19)>0,AF19,\"\")","v":1500},"円"]
[45]
[46,null,null,null,null,null,null,null,null,null,null,null,null,null,null,null,null,null,null,null,null,null,null,null,null,null,null,null,null,"①＋②　合計"]
[47,null,null,null,null,null,null,null,null,null,null,null,null,null,null,null,null,null,null,null,null,null,null,null,null,null,null,null,null,null,null,{"$f":"IF(LEN(AF22)>0,AF22,\"\")","v":1500},"円"]
[48]
[49,null,null,null,null,null,null,null,null,null,null,null,null,null,null,null,null,null,null,null,null,null,null,null,null,null,null,null,null,"住所，TEL，引率教諭・印"]
[50,null,null,null,null,null,null,null,null,null,null,null,null,null,null,null,null,null,null,null,null,null,null,null,null,null,null,null,null,"〒",{"$f":"IF(LEN(AE25)>0,AE25,\"\")","v":""},"520-3003","520-3003","520-3003"]
[51,null,null,null,null,null,null,null,null,null,null,null,null,null,null,null,null,null,null,null,null,null,null,null,null,null,null,null,null,{"$f":"IF(LEN(AD26)>0,AD26,\"\")","v":""},"栗東市荒張1357","栗東市荒張1357","栗東市荒張1357","栗東市荒張1357"]
[52,null,null,null,null,null,null,null,null,null,null,null,null,null,null,null,null,null,null,null,null,null,null,null,null,null,null,null,null,"TEL",{"$f":"IF(LEN(AE27)>0,AE27,\"\")","v":""},"077-558-0005","077-558-0005","077-558-0005"]
[53,null,null,null,null,null,null,null,null,null,null,null,null,null,null,null,null,null,null,null,null,null,null,null,null,null,null,null,null,null,{"$f":"IF(LEN(AE28)>0,AE28,\"\")","v":""},null,null,"印"]
[54]
[55,null,null,null,null,null,null,null,null,null,null,null,null,null,null,null,null,null,null,null,null,null,null,null,null,null,null,null,null,"　左記の者は本校在学生徒で，標記大会に出場することを認めます。\nなお，大会期間中（前日含む）に宿泊する場合は，指定斡旋業者を利用します。"]
[56]
[57]
[58,null,null,null,null,null,null,null,null,null,null,null,null,null,null,null,null,null,null,null,null,null,null,null,null,null,null,null,null,"2025年",{"$f":"IF(LEN(AE33)>0,AE33,\"\")","v":""},"月",{"$f":"IF(LEN(AG33)>0,AG33,\"\")","v":""},"日"]
[59]
[60,null,null,null,null,null,null,null,null,null,null,null,null,null,null,null,null,null,null,null,null,null,null,null,null,null,null,null,null,"学校長",{"$f":"IF(LEN(AE35)>0,AE35,\"\")","v":""},"","印"]
[61,null,null,null,null,null,null,null,null,null,null,null,null,null,null,null,null,null,null,null,null,null,null,null,null,null,null,null,null,"種別",{"$f":"IF(LEN(AE36)>0,AE36,\"\")","v":""},{"$f":"IF(LEN(AF36)>0,AF36,\"\")","v":""}]
[62,null,null,null,null,null,null,null,null,null,null,null,null,null,null,null,null,null,null,null,null,null,null,null,null,null,null,null,null,null,"1～4",null,null,{"$f":"AO1 & \"枚中の3枚目\"","v":"0枚中の3枚目"}]
[63,null,null,null,null,null,null,null,null,null,null,null,null,null,null,null,null,null,null,null,null,null,null,null,null,null,null,null,null,"ふりがな",{"$f":"IF(LEN(AE38)>0,AE38,\"\")","v":""}]
[64,null,null,null,null,null,null,null,null,null,null,null,null,null,null,null,null,null,null,null,null,null,null,null,null,null,null,null,null,"学校名",{"$f":"IF(LEN(AE39)>0,AE39,\"\")","v":""}]
[65]
[66,null,null,null,null,null,null,null,null,null,null,null,null,null,null,null,null,null,null,null,null,null,null,null,null,null,null,null,null,"参加人数","男子",{"$f":"IF(LEN(AF41)>0,AF41,\"\")","v":""},"名"]
[67,null,null,null,null,null,null,null,null,null,null,null,null,null,null,null,null,null,null,null,null,null,null,null,null,null,null,null,null,null,"女子",{"$f":"IF(LEN(AF42)>0,AF42,\"\")","v":""},"名"]
[68,null,null,null,null,null,null,null,null,null,null,null,null,null,null,null,null,null,null,null,null,null,null,null,null,null,null,null,null,null,"合計",{"$f":"IF(LEN(AF43)>0,AF43,\"\")","v":0},"名"]
[69]
[70,null,null,null,null,null,null,null,null,null,null,null,null,null,null,null,null,null,null,null,null,null,null,null,null,null,null,null,null,"①　参加料合計"]
[71,null,null,null,null,null,null,null,null,null,null,null,null,null,null,null,null,null,null,null,null,null,null,null,null,null,null,null,null,null,"合計",{"$f":"IF(LEN(AF46)>0,AF46,\"\")","v":0},"円"]
[72]
[73,null,null,null,null,null,null,null,null,null,null,null,null,null,null,null,null,null,null,null,null,null,null,null,null,null,null,null,null,"②　プログラム代"]
[74,null,null,null,null,null,null,null,null,null,null,null,null,null,null,null,null,null,null,null,null,null,null,null,null,null,null,null,null,{"$f":"IF(LEN(AD49)>0,AD49,\"\")","v":1},"部",{"$f":"IF(LEN(AF49)>0,AF49,\"\")","v":1500},"円"]
[75]
[76,null,null,null,null,null,null,null,null,null,null,null,null,null,null,null,null,null,null,null,null,null,null,null,null,null,null,null,null,"①＋②　合計"]
[77,null,null,null,null,null,null,null,null,null,null,null,null,null,null,null,null,null,null,null,null,null,null,null,null,null,null,null,null,null,null,{"$f":"IF(LEN(AF52)>0,AF52,\"\")","v":1500},"円"]
[78]
[79,null,null,null,null,null,null,null,null,null,null,null,null,null,null,null,null,null,null,null,null,null,null,null,null,null,null,null,null,"住所，TEL，引率教諭・印"]
[80,null,null,null,null,null,null,null,null,null,null,null,null,null,null,null,null,null,null,null,null,null,null,null,null,null,null,null,null,"〒",{"$f":"IF(LEN(AE55)>0,AE55,\"\")","v":""},"520-3003","520-3003","520-3003"]
[81,null,null,null,null,null,null,null,null,null,null,null,null,null,null,null,null,null,null,null,null,null,null,null,null,null,null,null,null,{"$f":"IF(LEN(AD56)>0,AD56,\"\")","v":""},"栗東市荒張1357","栗東市荒張1357","栗東市荒張1357","栗東市荒張1357"]
[82,null,null,null,null,null,null,null,null,null,null,null,null,null,null,null,null,null,null,null,null,null,null,null,null,null,null,null,null,"TEL",{"$f":"IF(LEN(AE57)>0,AE57,\"\")","v":""},"077-558-0005","077-558-0005","077-558-0005"]
[83,null,null,null,null,null,null,null,null,null,null,null,null,null,null,null,null,null,null,null,null,null,null,null,null,null,null,null,null,null,{"$f":"IF(LEN(AE58)>0,AE58,\"\")","v":""},null,null,"印"]
[84]
[85,null,null,null,null,null,null,null,null,null,null,null,null,null,null,null,null,null,null,null,null,null,null,null,null,null,null,null,null,"　左記の者は本校在学生徒で，標記大会に出場することを認めます。\nなお，大会期間中（前日含む）に宿泊する場合は，指定斡旋業者を利用します。"]
[86]
[87]
[88,null,null,null,null,null,null,null,null,null,null,null,null,null,null,null,null,null,null,null,null,null,null,null,null,null,null,null,null,"2025年",{"$f":"IF(LEN(AE63)>0,AE63,\"\")","v":""},"月",{"$f":"IF(LEN(AG63)>0,AG63,\"\")","v":""},"日"]
[89]
[90,null,null,null,null,null,null,null,null,null,null,null,null,null,null,null,null,null,null,null,null,null,null,null,null,null,null,null,null,"学校長",{"$f":"IF(LEN(AE65)>0,AE65,\"\")","v":""},"","印"]

{"sheet":"取り込み","index":1,"n_rows":0,"n_cols":0,"rows_kept":0,"cut":false,"hidden":false,"merged":[]}